bitfinex/quotes_BTCUSD_20240611
["timestamp","ask_amount","ask_price","bid_price","bid_amount"]
[1718075845137,2.89941167,68316.0,68315.0,0.000946]
[1718075845407,2.96509994,68316.0,68315.0,0.000946]
[1718075845605,2.97409994,68316.0,68315.0,0.000946]
[1718075846143,3.23269612,68316.0,68315.0,0.000946]
[1718075846367,3.34217658,68316.0,68315.0,0.000946]
[1718075846571,3.7169972,68316.0,68315.0,0.000946]
[1718075846770,3.62947883,68316.0,68315.0,0.000946]
[1718075846927,3.62950654,68316.0,68315.0,0.000946]
[1718075847527,3.59154445,68316.0,68315.0,0.000946]
[1718075847738,3.60454445,68316.0,68315.0,0.000946]
[1718075849003,3.60554445,68316.0,68315.0,0.000946]
[1718075849441,3.64379063,68316.0,68315.0,0.000946]
[1718075849646,3.65779063,68316.0,68315.0,0.000946]
[1718075850495,3.65778538,68316.0,68315.0,0.000946]
[1718075850703,3.72768538,68316.0,68315.0,0.000946]
[1718075851114,3.61824748,68316.0,68315.0,0.000946]
[1718075852280,3.68937493,68316.0,68315.0,0.000946]
[1718075852708,3.93575293,68316.0,68315.0,0.000946]
[1718075852915,0.74820765,68299.0,68290.0,0.146432]
[1718075853117,1.64074258,68299.0,68288.0,0.00072507]
[1718075853322,0.90150765,68292.0,68288.0,0.00072507]
[1718075853475,1.42574582,68292.0,68288.0,0.00072507]
[1718075853674,1.46912958,68292.0,68288.0,0.00072507]
[1718075853893,1.51289441,68292.0,68288.0,0.00072507]
[1718075854295,1.42574582,68292.0,68288.0,0.00072507]
[1718075854892,1.46912958,68292.0,68288.0,0.00072507]
[1718075855615,1.42574582,68292.0,68288.0,0.00072507]
[1718075855835,1.46912958,68292.0,68288.0,0.00072507]
[1718075856264,1.47812958,68292.0,68288.0,0.00072507]
[1718075856464,1.43474582,68292.0,68288.0,0.00072507]
[1718075856703,1.44174582,68292.0,68288.0,0.00072507]
[1718075856937,1.48512958,68292.0,68288.0,0.00072507]
[1718075857141,1.48518409,68292.0,68288.0,0.00072507]
[1718075858194,1.63161409,68292.0,68288.0,0.00072507]
[1718075858403,1.62261409,68292.0,68288.0,0.00072507]
[1718075858604,1.63361409,68292.0,68288.0,0.00072507]
[1718075858808,1.72662517,68292.0,68288.0,0.00072507]
[1718075859209,1.78718163,68292.0,68288.0,0.00072507]
[1718075859458,1.71562517,68292.0,68288.0,0.00072507]
[1718075859668,1.79952517,68292.0,68288.0,0.00072507]
[1718075859866,1.81352517,68292.0,68288.0,0.00072507]
[1718075860245,1.74362517,68292.0,68288.0,0.00072507]
[1718075862290,1.81352517,68292.0,68288.0,0.00072507]
[1718075865102,1.81352844,68292.0,68288.0,0.00072507]
[1718075866379,3.06441053,68292.0,68288.0,0.00072507]
[1718075867754,3.07026853,68292.0,68288.0,0.00072507]
[1718075868175,3.17026853,68292.0,68288.0,0.00072507]
[1718075868824,0.82224365,68289.0,68288.0,0.00072507]
[1718075869028,1.21134108,68289.0,68288.0,0.00072507]
[1718075869989,1.22534108,68289.0,68288.0,0.00072507]
[1718075870332,1.52911119,68289.0,68288.0,0.00072507]
[1718075871666,1.56508419,68289.0,68288.0,0.00072507]
[1718075871885,2.81596628,68289.0,68288.0,0.00072507]
[1718075872348,2.81596669,68289.0,68288.0,0.00072507]
[1718075872545,2.79400164,68289.0,68288.0,0.00072507]
[1718075872765,2.79400432,68289.0,68288.0,0.00072507]
[1718075873486,2.81597839,68289.0,68288.0,0.00072507]
[1718075873892,2.96029832,68289.0,68288.0,0.00072507]
[1718075874678,2.81597839,68289.0,68288.0,0.00072507]
[1718075875534,2.81597343,68289.0,68288.0,0.00072507]
[1718075875747,2.7939999,68289.0,68288.0,0.00072507]
[1718075875959,2.81597343,68289.0,68288.0,0.00072507]
[1718075876386,2.7939999,68289.0,68288.0,0.00072507]
[1718075877667,2.49022671,68289.0,68288.0,0.00072507]
[1718075877876,2.7939895,68289.0,68288.0,0.00072507]
[1718075878239,2.86512872,68289.0,68288.0,0.00072507]
[1718075878457,3.00944865,68289.0,68288.0,0.00072507]
[1718075878663,3.21817325,68289.0,68288.0,0.00072507]
[1718075878873,3.07296793,68289.0,68288.0,0.00072507]
[1718075879319,2.86424333,68289.0,68288.0,0.00072507]
[1718075880889,3.01814333,68289.0,68288.0,0.00072507]
[1718075881094,0.54766026,68288.0,68287.0,0.00057591]
[1718075881303,2.12226773,68288.0,68287.0,0.00057591]
[1718075881505,1.46907926,68279.0,68278.0,0.000946]
[1718075881711,3.63786433,68279.0,68278.0,0.000946]
[1718075881962,3.91874889,68279.0,68278.0,0.000946]
[1718075882186,4.41811281,68279.0,68278.0,0.000946]
[1718075882385,4.43991665,68279.0,68278.0,0.000946]
[1718075882537,4.58423658,68279.0,68278.0,0.000946]
[1718075882892,4.68953658,68279.0,68278.0,0.000946]
[1718075883100,1.12592226,68263.0,68257.0,0.00021549]
[1718075883383,2.54412428,68263.0,68257.0,0.00021549]
[1718075883614,2.27008306,68263.0,68257.0,0.00021549]
[1718075883826,1.54708306,68263.0,68262.0,0.331132]
[1718075884049,1.54708306,68263.0,68262.0,0.431132]
[1718075884050,1.39520202,68263.0,68262.0,0.431132]
[1718075884266,1.39520202,68263.0,68262.0,0.60380974]
[1718075884479,1.25088209,68263.0,68262.0,0.60380974]
[1718075884719,1.25088209,68263.0,68262.0,0.4471935]
[1718075884931,1.25088209,68263.0,68262.0,0.2719935]
[1718075885140,1.39520202,68263.0,68262.0,0.255932]
[1718075885357,1.40320202,68263.0,68262.0,0.255932]
[1718075885790,1.26488209,68263.0,68262.0,0.42860974]
[1718075885997,1.25088209,68263.0,68262.0,0.42860974]
[1718075886445,1.25188209,68263.0,68262.0,0.42860974]
[1718075886660,0.001,68263.0,68262.0,0.42860974]
[1718075886870,1.15188209,68269.0,68268.0,0.1625425]
[1718075887107,1.29620202,68269.0,68268.0,0.2625425]
[1718075887321,1.29620202,68269.0,68268.0,0.246481]
[1718075888762,1.29620202,68269.0,68268.0,0.247481]
[1718075888978,1.30014052,68269.0,68268.0,0.247481]
[1718075889190,1.30014052,68269.0,68268.0,0.248481]
[1718075889415,1.32314052,68269.0,68268.0,0.246481]
[1718075889613,1.32514052,68269.0,68268.0,0.1]
[1718075889817,1.47703494,68269.0,68268.0,0.001]
[1718075890050,0.0039385,68267.0,68266.0,0.1]
[1718075890259,0.17125843,68267.0,68266.0,0.1]
[1718075890430,0.16731993,68267.0,68266.0,0.1]
[1718075891303,0.14431993,68267.0,68266.0,0.246485]
[1718075891515,0.14431993,68267.0,68266.0,0.2625465]
[1718075891958,0.14431993,68267.0,68266.0,0.41916274]
[1718075892390,1.30020202,68267.0,68266.0,0.2625465]
[1718075893010,1.29620202,68267.0,68266.0,0.2625465]
[1718075893450,1.29620202,68267.0,68266.0,0.2635465]
[1718075893664,1.29620202,68267.0,68266.0,0.246485]
[1718075893871,1.29620202,68267.0,68266.0,0.41916274]
[1718075894089,1.29720202,68267.0,68266.0,0.41916274]
[1718075895002,1.15288209,68267.0,68266.0,0.41916274]
[1718075895389,0.001,68267.0,68266.0,0.42016274]
[1718075895790,1.15188209,68271.0,68270.0,0.146477]
[1718075895990,1.15188209,68271.0,68270.0,0.246477]
[1718075895991,1.29620202,68271.0,68270.0,0.246477]
[1718075896859,1.29620202,68271.0,68270.0,0.41915474]
[1718075897267,1.15188209,68271.0,68270.0,0.41915474]
[1718075898107,1.15988209,68271.0,68270.0,0.42915474]
[1718075898668,1.15188209,68271.0,68270.0,0.42915474]
[1718075898872,1.15588209,68271.0,68270.0,0.42915474]
[1718075899314,1.15188209,68271.0,68270.0,0.42915474]
[1718075899525,1.15688209,68271.0,68270.0,0.42915474]
[1718075899928,1.15188209,68271.0,68270.0,0.41915474]
[1718075900283,1.15188209,68271.0,68270.0,0.42015474]
[1718075900958,1.15288209,68271.0,68270.0,0.42015474]
[1718075901166,0.001,68271.0,68270.0,0.42015474]
[1718075901584,0.001,68271.0,68270.0,0.247477]
[1718075902495,0.14531993,68271.0,68270.0,0.247477]
[1718075904764,0.14531993,68271.0,68270.0,0.2651413]
[1718075906788,0.14531993,68271.0,68270.0,0.247477]
[1718075907103,1.29720202,68271.0,68270.0,0.247477]
[1718075908422,1.55034052,68271.0,68270.0,0.247477]
[1718075908640,1.54640202,68271.0,68270.0,0.247477]
[1718075908841,1.29720202,68271.0,68270.0,0.247477]
[1718075909671,1.29720202,68271.0,68270.0,0.59535474]
[1718075911081,1.29720202,68271.0,68270.0,0.422677]
[1718075911294,1.29720202,68271.0,68270.0,0.247477]
[1718075911670,1.29720202,68271.0,68270.0,0.2635385]
[1718075911866,1.29720202,68271.0,68270.0,0.42015474]
[1718075912274,1.15288209,68271.0,68270.0,0.42015474]
[1718075912898,0.001,68271.0,68270.0,0.42015474]
[1718075913379,0.001,68271.0,68270.0,0.59535474]
[1718075913824,0.001,68271.0,68270.0,0.60535474]
[1718075914058,0.001,68271.0,68270.0,0.59535474]
[1718075914546,0.001,68271.0,68270.0,0.60535474]
[1718075916702,0.001,68271.0,68270.0,0.59535474]
[1718075917118,0.00186,68271.0,68270.0,0.59535474]
[1718075917926,0.00186,68271.0,68270.0,0.60535474]
[1718075918726,0.00186,68271.0,68270.0,0.59535474]
[1718075919045,0.00186,68271.0,68270.0,0.68081443]
[1718075922538,0.00186,68271.0,68270.0,0.59535474]
[1718075922790,0.00186,68271.0,68270.0,0.6818342]
[1718075924846,0.39066,68271.0,68270.0,0.5066342]
[1718075925063,0.13056,68271.0,68270.0,0.5066342]
[1718075925483,0.00186,68271.0,68270.0,0.5066342]
[1718075925919,0.00186,68271.0,68270.0,0.35001796]
[1718075926120,0.00186,68271.0,68270.0,0.33395646]
[1718075926326,0.00186,68271.0,68270.0,0.5066342]
[1718075927295,0.00186,68271.0,68270.0,0.33395646]
[1718075927487,0.00186,68271.0,68270.0,0.5066342]
[1718075929893,0.00186,68271.0,68270.0,0.7995882]
[1718075936665,0.00186,68271.0,68270.0,0.5066342]
[1718075936666,0.11936,68271.0,68270.0,0.5066342]
[1718075936896,0.36066,68271.0,68270.0,0.35001796]
[1718075937313,0.36066,68271.0,68270.0,0.5066342]
[1718075938890,0.36066,68271.0,68270.0,0.33395646]
[1718075939095,0.36066,68271.0,68270.0,0.35001796]
[1718075939303,0.36066,68271.0,68270.0,0.42015474]
[1718075939736,0.36066,68271.0,68270.0,0.50673554]
[1718075940548,0.00186,68271.0,68270.0,0.50673554]
[1718075941310,0.00186,68271.0,68270.0,0.79968954]
[1718075942519,0.00186,68271.0,68270.0,0.79918681]
[1718075943733,0.00186,68271.0,68270.0,1.10214081]
[1718075943963,0.00186,68271.0,68270.0,1.13145347]
[1718075944403,0.00186,68271.0,68270.0,1.10214081]
[1718075944605,0.00186,68271.0,68270.0,1.09214081]
[1718075945226,0.00186,68271.0,68270.0,1.13146271]
[1718075945433,0.00186,68271.0,68270.0,1.10214081]
[1718075945633,0.00086,68271.0,68270.0,1.14145462]
[1718075946229,0.00086,68271.0,68270.0,1.10214081]
[1718075946428,0.00186,68271.0,68270.0,1.18528362]
[1718075946658,0.00186,68271.0,68270.0,1.14596976]
[1718075946793,0.00086,68271.0,68270.0,1.14496976]
[1718075947211,0.00186,68271.0,68270.0,1.14796976]
[1718075947872,0.00186,68271.0,68270.0,1.50758776]
[1718075948073,0.00186,68271.0,68270.0,1.5468741]
[1718075948280,0.00186,68271.0,68270.0,1.3783591]
[1718075948501,0.00186,68271.0,68270.0,1.3613301]
[1718075949165,0.00186,68271.0,68270.0,1.32204376]
[1718075949697,0.00186,68271.0,68270.0,1.36960505]
[1718075949909,0.00186,68271.0,68270.0,1.70730649]
[1718075950105,0.46890416,68279.0,68278.0,0.17267774]
[1718075950328,1.15188209,68282.0,68281.0,0.18267774]
[1718075950523,1.15188209,68282.0,68281.0,0.28267774]
[1718075950717,1.15188209,68282.0,68281.0,0.45912286]
[1718075950921,1.15188209,68282.0,68281.0,1.19138986]
[1718075951206,0.46976416,68291.0,68290.0,0.18267774]
[1718075951338,0.46976416,68291.0,68290.0,0.76480869]
[1718075951918,0.46976416,68291.0,68290.0,0.89842486]
[1718075953025,0.46976416,68291.0,68290.0,0.89242486]
[1718075953316,0.46976416,68291.0,68290.0,0.90242486]
[1718075953538,0.46976416,68291.0,68290.0,0.89842486]
[1718075953721,0.46976416,68291.0,68290.0,0.90542486]
[1718075954842,0.46976416,68291.0,68290.0,0.90142486]
[1718075955302,0.46976416,68291.0,68290.0,0.88842486]
[1718075955548,0.46976416,68291.0,68290.0,0.89242486]
[1718075956186,0.46976416,68291.0,68290.0,0.90242486]
[1718075956401,0.46976416,68291.0,68290.0,0.90642486]
[1718075957018,0.00086,68291.0,68290.0,0.89642486]
[1718075958648,0.00086,68291.0,68290.0,0.89620541]
[1718075958852,0.00086,68291.0,68290.0,0.90620541]
[1718075959692,0.00086,68291.0,68290.0,1.19907341]
[1718075963573,0.00086,68291.0,68290.0,1.2254861]
[1718075964837,0.21386,68291.0,68290.0,1.0978181]
[1718075965043,0.21386,68291.0,68290.0,0.96420193]
[1718075965254,0.21386,68291.0,68290.0,0.93778924]
[1718075966079,0.21386,68291.0,68290.0,0.93378924]
[1718075966304,0.21386,68291.0,68290.0,0.92978924]
[1718075966511,0.46287993,68291.0,68290.0,0.154434]
[1718075966932,0.46287993,68291.0,68290.0,0.146434]
[1718075967346,0.46287993,68291.0,68290.0,0.150434]
[1718075967514,0.46287993,68291.0,68290.0,0.146434]
[1718075967927,0.46287993,68291.0,68290.0,0.250434]
[1718075968144,0.46287993,68291.0,68290.0,0.2664955]
[1718075968354,0.31856,68291.0,68290.0,0.42711174]
[1718075968934,0.31856,68291.0,68290.0,0.42311174]
[1718075969343,0.31856,68291.0,68290.0,0.42511174]
[1718075980224,0.31856,68291.0,68290.0,0.51356603]
[1718075986634,0.31856,68291.0,68290.0,0.51361143]
[1718075989236,0.31856,68291.0,68290.0,0.87647943]
[1718075990274,0.31856,68291.0,68290.0,0.80647943]
[1718075990649,0.31856,68291.0,68290.0,0.87647943]
[1718075994922,0.31856,68291.0,68290.0,0.80647943]
[1718075995201,0.31418055,68291.0,68290.0,0.87647943]
[1718076000842,0.1047,68291.0,68290.0,0.87647943]
[1718076002442,0.1047,68291.0,68290.0,0.78797974]
[1718076002670,0.1047,68291.0,68290.0,0.87427204]
[1718076003338,0.1047,68291.0,68290.0,0.80427204]
[1718076003561,0.1047,68291.0,68290.0,0.87427204]
[1718076004045,0.1047,68291.0,68290.0,0.87433068]
[1718076004711,0.3002,68291.0,68290.0,0.87433068]
[1718076005414,0.3002,68291.0,68290.0,0.78797974]
[1718076006618,0.3002,68291.0,68290.0,0.71797974]
[1718076006828,0.3002,68291.0,68290.0,0.78797974]
[1718076007194,0.3002,68291.0,68290.0,0.252434]
[1718076007195,0.44451993,68291.0,68290.0,0.252434]
[1718076007402,0.44845843,68291.0,68290.0,0.252434]
[1718076007600,0.44451993,68291.0,68290.0,0.252434]
[1718076007803,0.59634433,68291.0,68290.0,0.252434]
[1718076008267,0.59634433,68291.0,68290.0,0.250434]
[1718076008705,0.59634433,68291.0,68290.0,0.254434]
[1718076009150,1.75216492,68291.0,68290.0,0.250434]
[1718076009282,1.77516492,68291.0,68290.0,0.1]
[1718076009486,1.77516492,68291.0,68286.0,0.246442]
[1718076009487,0.5039385,68287.0,68286.0,0.246442]
[1718076009686,0.64431993,68287.0,68286.0,0.246442]
[1718076009889,0.93915843,68287.0,68286.0,0.246442]
[1718076010370,1.09100847,68287.0,68286.0,0.246442]
[1718076010995,1.09100847,68287.0,68286.0,0.247442]
[1718076012332,1.13439223,68287.0,68286.0,0.247442]
[1718076012585,2.30927432,68287.0,68286.0,0.002]
[1718076012822,2.30927432,68287.0,68281.0,0.00021549]
[1718076012823,0.33822226,68282.0,68281.0,0.00021549]
[1718076013056,0.65680293,68282.0,68281.0,0.00021549]
[1718076013275,0.63485015,68282.0,68281.0,0.00021549]
[1718076013509,0.59100847,68282.0,68281.0,0.00021549]
[1718076013948,0.59100847,68282.0,68281.0,0.00121549]
[1718076014607,0.59100847,68282.0,68281.0,0.00216149]
[1718076015059,0.43915843,68282.0,68281.0,0.00216149]
[1718076015909,0.43915843,68282.0,68281.0,0.00316149]
[1718076016426,0.43915843,68282.0,68281.0,0.31961449]
[1718076016427,0.2909,68282.0,68281.0,0.31961449]
[1718076016654,0.2909,68282.0,68281.0,0.49229223]
[1718076018199,0.2909,68282.0,68281.0,0.49207674]
[1718076018966,0.2909,68282.0,68281.0,0.42207674]
[1718076020289,0.2909,68282.0,68281.0,0.249399]
[1718076020509,0.2909,68282.0,68281.0,0.2654605]
[1718076020953,0.2909,68282.0,68281.0,0.249399]
[1718076022468,0.2909,68282.0,68281.0,0.42207674]
[1718076024403,0.2909,68282.0,68281.0,0.249399]
[1718076024603,0.2909,68282.0,68281.0,0.42207674]
[1718076025171,0.2909,68282.0,68281.0,0.43923808]
[1718076026680,0.2909,68282.0,68281.0,0.61423808]
[1718076027108,0.2909,68282.0,68281.0,0.43923808]
[1718076030790,0.2909,68282.0,68281.0,0.28262184]
[1718076030994,0.43521993,68282.0,68281.0,0.249399]
[1718076036024,0.43521993,68282.0,68269.0,0.000946]
[1718076036025,0.5,68256.0,68255.0,0.009438]
[1718076036191,0.5,68256.0,68255.0,0.0514532]
[1718076036192,0.6916,68256.0,68255.0,0.0514532]
[1718076036492,1.08904365,68256.0,68255.0,0.009438]
[1718076036694,1.09298215,68256.0,68255.0,0.009438]
[1718076036904,1.39683385,68256.0,68255.0,0.009438]
[1718076037125,1.09298215,68256.0,68255.0,0.009438]
[1718076037767,1.09298215,68256.0,68255.0,0.013438]
[1718076038382,1.09298215,68256.0,68255.0,0.009438]
[1718076038383,1.11598215,68256.0,68255.0,0.009438]
[1718076039286,0.2039385,68247.0,68246.0,0.009438]
[1718076039495,1.21241458,68247.0,68246.0,0.009438]
[1718076039711,1.33541458,68247.0,68246.0,0.009438]
[1718076039926,1.60707766,68247.0,68246.0,0.009438]
[1718076040343,1.35740034,68247.0,68246.0,0.009438]
[1718076040970,1.26325462,68247.0,68246.0,0.009438]
[1718076041183,1.29924038,68247.0,68246.0,0.009438]
[1718076041386,1.26325462,68247.0,68246.0,0.009438]
[1718076041591,0.95936591,68247.0,68246.0,0.009438]
[1718076041795,0.98736591,68247.0,68246.0,0.009438]
[1718076042420,0.2706,68233.0,68229.0,0.009438]
[1718076042638,1.42642059,68233.0,68229.0,0.009438]
[1718076042866,0.14431993,68232.0,68229.0,0.009438]
[1718076043574,0.14431993,68232.0,68215.0,0.20092125]
[1718076043575,0.1,68223.0,68208.0,0.0160615]
[1718076043778,0.5039385,68224.0,68207.0,0.15661624]
[1718076043779,0.5,68224.0,68217.0,0.0160615]
[1718076044012,0.29632155,68223.0,68217.0,0.0160615]
[1718076044675,0.29632155,68223.0,68218.0,0.0160615]
[1718076044888,0.29632155,68223.0,68222.0,0.010449]
[1718076045527,0.30032155,68223.0,68222.0,0.010449]
[1718076046170,0.30032155,68223.0,68222.0,0.009449]
[1718076046602,0.30532155,68223.0,68222.0,0.009449]
[1718076046818,0.004,68223.0,68222.0,0.18212674]
[1718076047020,0.004,68223.0,68222.0,0.28212674]
[1718076047245,0.015,68223.0,68222.0,0.28312674]
[1718076047450,0.015,68223.0,68222.0,0.28212674]
[1718076047451,0.004,68223.0,68222.0,0.28212674]
[1718076047659,0.5,68232.0,68226.0,0.0160615]
[1718076047865,0.5,68232.0,68229.0,0.0160615]
[1718076047866,0.14431993,68231.0,68229.0,0.0160615]
[1718076048038,0.14431993,68231.0,68229.0,0.1160615]
[1718076048555,0.14431993,68231.0,68222.0,0.009449]
[1718076048556,0.5,68223.0,68222.0,0.009449]
[1718076048764,0.64431993,68223.0,68222.0,0.009449]
[1718076048976,0.64731993,68223.0,68222.0,0.009449]
[1718076049220,0.503,68223.0,68222.0,0.18212674]
[1718076049440,0.003,68223.0,68222.0,0.43870674]
[1718076049648,0.04909596,68236.0,68235.0,0.31922974]
[1718076049901,0.04909596,68236.0,68235.0,0.59422974]
[1718076050111,0.5,68242.0,68239.0,0.0160615]
[1718076050326,0.14431993,68241.0,68237.0,0.0160615]
[1718076050940,0.14431993,68241.0,68239.0,0.0160615]
[1718076051146,0.14431993,68241.0,68238.0,0.15661624]
[1718076051147,0.14431993,68241.0,68237.0,0.0160615]
[1718076051565,0.14431993,68241.0,68239.0,0.0180615]
[1718076051745,0.14431993,68241.0,68239.0,0.002]
[1718076051941,0.5,68242.0,68240.0,0.17267774]
[1718076052194,0.5,68242.0,68239.0,0.002]
[1718076052195,0.5,68242.0,68241.0,0.44767774]
[1718076053234,0.5,68242.0,68241.0,0.59421674]
[1718076053809,0.506,68242.0,68241.0,0.59521674]
[1718076054015,0.5,68242.0,68241.0,0.59421674]
[1718076054396,0.501,68242.0,68241.0,0.59421674]
[1718076054897,0.505,68242.0,68241.0,0.59421674]
[1718076055248,0.501,68242.0,68241.0,0.59421674]
[1718076060394,0.501,68242.0,68241.0,0.88729474]
[1718076060395,0.001,68242.0,68241.0,0.88729474]
[1718076062694,0.04986271,68249.0,68248.0,0.31920174]
[1718076062919,0.19418264,68249.0,68248.0,0.41920174]
[1718076063145,1.15188209,68250.0,68249.0,0.31919974]
[1718076063351,1.15188209,68250.0,68249.0,0.41919974]
[1718076064229,1.15188209,68250.0,68249.0,0.71224374]
[1718076065932,1.15188209,68250.0,68249.0,0.71624374]
[1718076066386,1.15188209,68250.0,68249.0,0.71224374]
[1718076066768,1.15188209,68250.0,68249.0,0.71624374]
[1718076068324,1.15188209,68255.0,68254.0,0.146511]
[1718076068540,1.29620202,68255.0,68254.0,0.146511]
[1718076068741,1.29620202,68255.0,68254.0,0.246511]
[1718076069503,1.30120202,68255.0,68254.0,0.246511]
[1718076069753,1.57410202,68255.0,68254.0,0.246511]
[1718076070182,1.57410202,68255.0,68254.0,0.247511]
[1718076070183,1.58110202,68255.0,68254.0,0.247511]
[1718076070763,1.57610202,68255.0,68254.0,0.247511]
[1718076071162,1.58210202,68255.0,68254.0,0.247511]
[1718076072350,1.58604052,68255.0,68254.0,0.247511]
[1718076072997,1.58210202,68255.0,68254.0,0.247511]
[1718076074286,1.58604052,68255.0,68254.0,0.247511]
[1718076074496,1.60904052,68255.0,68254.0,0.247511]
[1718076074918,1.60510202,68255.0,68254.0,0.247511]
[1718076075378,1.7609588,68255.0,68254.0,0.147511]
[1718076075603,2.10819145,68255.0,68254.0,0.001]
[1718076076025,2.06480769,68255.0,68254.0,0.001]
[1718076076245,2.10819145,68255.0,68254.0,0.001]
[1718076076817,2.06480769,68255.0,68254.0,0.001]
[1718076077450,2.10819145,68255.0,68254.0,0.001]
[1718076078710,2.06480769,68255.0,68254.0,0.001]
[1718076079144,2.08772851,68255.0,68254.0,0.001]
[1718076080183,2.06480769,68255.0,68254.0,0.001]
[1718076081228,2.0648277,68255.0,68254.0,0.001]
[1718076081477,2.0656877,68255.0,68254.0,0.001]
[1718076083037,2.10907146,68255.0,68254.0,0.001]
[1718076083248,2.13105318,68255.0,68254.0,0.001]
[1718076083452,2.08766942,68255.0,68254.0,0.001]
[1718076083862,2.0656877,68255.0,68254.0,0.001]
[1718076084077,2.0617492,68255.0,68254.0,0.001]
[1718076084302,2.0387492,68255.0,68254.0,0.147511]
[1718076084738,1.73490031,68255.0,68254.0,0.147511]
[1718076085339,1.7348767,68255.0,68254.0,0.147511]
[1718076085758,1.58296202,68255.0,68254.0,0.147511]
[1718076085962,1.73487015,68255.0,68254.0,0.147511]
[1718076086990,1.58296202,68255.0,68254.0,0.147511]
[1718076087735,1.58296202,68255.0,68254.0,0.1635725]
[1718076087941,1.58296202,68255.0,68254.0,0.32018874]
[1718076088379,1.58296202,68255.0,68254.0,0.147511]
[1718076089279,1.73487396,68255.0,68254.0,0.147511]
[1718076089705,1.58296202,68255.0,68254.0,0.147511]
[1718076089924,1.73487939,68255.0,68254.0,0.147511]
[1718076090402,1.58690052,68255.0,68254.0,0.147511]
[1718076090621,1.76181824,68255.0,68254.0,0.147511]
[1718076095256,1.75787974,68255.0,68254.0,0.147511]
[1718076098459,1.76182206,68255.0,68254.0,0.147511]
[1718076103577,1.8057,68255.0,68254.0,0.147511]
[1718076104413,2.37487788,68255.0,68254.0,0.001]
[1718076104583,2.33149412,68255.0,68254.0,0.001]
[1718076104998,2.59024809,68255.0,68254.0,0.001]
[1718076106371,2.58630959,68255.0,68254.0,0.001]
[1718076107008,2.59024809,68255.0,68254.0,0.001]
[1718076107202,2.58630959,68255.0,68254.0,0.001]
[1718076107632,2.59024809,68255.0,68254.0,0.001]
[1718076109276,2.58630959,68255.0,68254.0,0.001]
[1718076109484,2.67800398,68255.0,68254.0,0.001]
[1718076109873,2.33150669,68255.0,68254.0,0.001]
[1718076110126,2.26568723,68255.0,68254.0,0.001]
[1718076111077,2.33150941,68255.0,68254.0,0.001]
[1718076111709,2.32757091,68255.0,68254.0,0.001]
[1718076112143,2.32757091,68255.0,68254.0,0.147511]
[1718076113870,1.95789359,68255.0,68254.0,0.147511]
[1718076114076,2.00178109,68255.0,68254.0,0.147511]
[1718076114320,1.95789359,68255.0,68254.0,0.147511]
[1718076114992,1.96183209,68255.0,68254.0,0.147511]
[1718076115416,1.95789359,68255.0,68254.0,0.147511]
[1718076115689,1.96183209,68255.0,68254.0,0.147511]
[1718076116764,2.0710495,68255.0,68254.0,0.147511]
[1718076117008,2.02766574,68255.0,68254.0,0.147511]
[1718076117222,2.0710495,68255.0,68254.0,0.001]
[1718076117454,2.0710495,68255.0,68223.0,0.04372091]
[1718076117455,0.5,68234.0,68223.0,0.04372091]
[1718076117691,0.47575996,68224.0,68203.0,0.14662]
[1718076117912,0.47575996,68224.0,68181.0,0.12]
[1718076117913,0.175,68204.0,68193.0,0.009438]
[1718076118207,0.08784987,68194.0,68193.0,0.009438]
[1718076118436,0.08784987,68194.0,68177.0,0.009438]
[1718076118437,0.0752,68193.0,68177.0,0.009438]
[1718076118656,0.6484,68191.0,68177.0,0.009438]
[1718076118884,0.8174359,68191.0,68177.0,0.009438]
[1718076119116,0.8174359,68191.0,68190.0,2.31727033]
[1718076119117,1.45564899,68191.0,68190.0,2.31727033]
[1718076119367,1.35564899,68191.0,68190.0,2.31727033]
[1718076119631,1.50983948,68191.0,68190.0,2.31727033]
[1718076119845,1.70983948,68191.0,68190.0,2.31727033]
[1718076120084,1.78530996,68191.0,68190.0,2.31727033]
[1718076120314,1.52520996,68191.0,68190.0,2.31727033]
[1718076120540,1.07757952,68191.0,68190.0,2.31727033]
[1718076120785,0.52810503,68191.0,68190.0,2.31727033]
[1718076121014,0.42388128,68191.0,68190.0,2.31727033]
[1718076121237,0.68251502,68191.0,68190.0,2.31727033]
[1718076121462,0.57831993,68191.0,68190.0,2.31727033]
[1718076121721,1.33870612,68191.0,68190.0,2.31727033]
[1718076121939,1.42305425,68191.0,68190.0,2.31727033]
[1718076122157,0.44850612,68191.0,68190.0,2.31727033]
[1718076122380,0.15831993,68191.0,68190.0,2.31727033]
[1718076122611,0.16531993,68191.0,68190.0,2.31727033]
[1718076122863,0.007,68191.0,68190.0,2.31727033]
[1718076123100,0.14431993,68191.0,68190.0,2.41727033]
[1718076123358,0.014,68191.0,68190.0,2.41727033]
[1718076123579,0.028,68191.0,68190.0,2.41727033]
[1718076123779,0.17231993,68191.0,68190.0,2.41727033]
[1718076124737,0.014,68191.0,68190.0,2.43727033]
[1718076125197,0.54916524,68207.0,68193.0,0.02]
[1718076125413,0.14431993,68206.0,68194.0,0.175]
[1718076125632,0.14431993,68206.0,68192.0,0.1]
[1718076125633,0.14431993,68206.0,68200.0,0.175]
[1718076125943,0.14431993,68206.0,68201.0,0.1]
[1718076126805,1.29620202,68206.0,68201.0,0.1]
[1718076127477,0.5,68200.0,68197.0,0.1]
[1718076127716,0.14431993,68199.0,68191.0,0.1]
[1718076127924,1.15188209,68206.0,68195.0,0.175]
[1718076128152,0.14431993,68205.0,68200.0,0.003]
[1718076128379,0.14431993,68205.0,68201.0,0.002]
[1718076129015,0.14431993,68205.0,68196.0,0.1]
[1718076129452,0.14431993,68205.0,68201.0,0.002]
[1718076129861,0.14431993,68205.0,68194.0,0.1]
[1718076130100,0.14431993,68205.0,68201.0,0.002]
[1718076130996,0.66431993,68202.0,68201.0,0.002]
[1718076131403,0.96843513,68202.0,68201.0,0.002]
[1718076131621,0.5,68192.0,68191.0,0.1]
[1718076131830,0.64431993,68192.0,68191.0,0.1]
[1718076132763,0.64431993,68192.0,68191.0,0.103]
[1718076133225,1.81620202,68192.0,68191.0,0.006]
[1718076133425,0.22,68191.0,68190.0,2.01427034]
[1718076133652,0.36431993,68191.0,68190.0,2.01427034]
[1718076133880,0.69147261,68191.0,68190.0,2.01427034]
[1718076134082,1.9433547,68191.0,68190.0,2.01427034]
[1718076134299,1.99024523,68191.0,68190.0,2.01427034]
[1718076134531,2.49887391,68191.0,68190.0,2.01427034]